fUST/lending_fUST_20240411
["ID","MTS","AMOUNT","RATE_DAILY","PERIOD"]
[322118549,1712808644050,-86436.28818755,0.00041,30]
[322118550,1712808644059,-220.775652,0.00041,2]
[322118551,1712808644069,-151.0,0.00041,2]
[322118552,1712808644078,-155.772126,0.00041,2]
[322118553,1712808644088,-151.0,0.00041,2]
[322118554,1712808644097,-151.0,0.00041,2]
[322118555,1712808644106,-209.47364,0.00041,2]
[322118556,1712808644116,-151.0,0.00041,2]
[322118557,1712808644126,-153.635828,0.00041,2]
[322118559,1712808644136,-151.0,0.00041,2]
[322118561,1712808644145,-511819.3,0.00041,5]
[322118562,1712808644157,-2000.0,0.00041,30]
[322118563,1712808644166,-405.940475,0.00041,2]
[322118564,1712808644177,-405.940475,0.00041,2]
[322118565,1712808644186,-405.940475,0.00041,2]
[322118566,1712808644196,-405.940475,0.00041,2]
[322118567,1712808644205,-405.940475,0.00041,2]
[322118568,1712808644214,-405.940475,0.00041,2]
[322118569,1712808644225,-405.940475,0.00041,2]
[322118570,1712808644234,-405.940475,0.00041,2]
[322118571,1712808644243,-151.0,0.00041,2]
[322118572,1712808644252,-151.0,0.00041,2]
[322118573,1712808644261,-151.0,0.00041,2]
[322118574,1712808644270,-153.707074,0.00041,2]
[322118575,1712808644279,-286.378564,0.00041,2]
[322118576,1712808644289,-286.378564,0.00041,2]
[322118577,1712808644299,-286.378564,0.00041,2]
[322118578,1712808644309,-286.378564,0.00041,2]
[322118579,1712808644318,-286.378564,0.00041,2]
[322118580,1712808644328,-286.378564,0.00041,2]
[322118581,1712808644338,-286.378564,0.00041,2]
[322118582,1712808644347,-286.378564,0.00041,2]
[322118583,1712808644357,-169.842398,0.00041,2]
[322118584,1712808644366,-151.0,0.00041,2]
[322118585,1712808644375,-151.0,0.00041,2]
[322118586,1712808644383,-151.0,0.00041,2]
[322118587,1712808644392,-151.0,0.00041,2]
[322118588,1712808644402,-166.677522,0.00041,2]
[322118589,1712808644414,-166.677522,0.00041,2]
[322118590,1712808644423,-166.677522,0.00041,2]
[322118591,1712808644432,-166.677522,0.00041,2]
[322118592,1712808644441,-166.677522,0.00041,2]
[322118593,1712808644449,-166.677522,0.00041,2]
[322118594,1712808644458,-166.677522,0.00041,2]
[322118595,1712808644467,-166.677522,0.00041,2]
[322118596,1712808644476,-268.623096,0.00041,2]
[322118597,1712808644485,-325.87926,0.00041,2]
[322118598,1712808644494,-325.87926,0.00041,2]
[322118599,1712808644504,-325.87926,0.00041,2]
[322118600,1712808644513,-325.87926,0.00041,2]
[322118601,1712808644522,-325.87926,0.00041,2]
[322118602,1712808644531,-325.87926,0.00041,2]
[322118603,1712808644540,-325.87926,0.00041,2]
[322118604,1712808644549,-325.87926,0.00041,2]
[322118605,1712808644558,-151.0,0.00041,2]
[322118606,1712808644567,-2177.106107,0.0004101,30]
[322118607,1712808644576,-53378.91694265,0.00041093,4]
[322118608,1712808644586,-405.940475,0.00041093,2]
[322118609,1712808644595,-405.940475,0.00041093,2]
[322118610,1712808644604,-286.378564,0.00041093,2]
[322118611,1712808644613,-286.378564,0.00041093,2]
[322118612,1712808644622,-233.574416,0.00041093,2]
[322118613,1712808644630,-166.677522,0.00041093,2]
[322118614,1712808644639,-166.677522,0.00041093,2]
[322118615,1712808644648,-325.87926,0.00041093,2]
[322118616,1712808644660,-325.87926,0.00041093,2]
[322118617,1712808644670,-506.3108286,0.00041095,21]
[322118618,1712808644678,-500.0,0.00041095,21]
[322118619,1712808644688,-506.03167518,0.00041095,21]
[322118620,1712808644698,-510.46462318,0.00041095,21]
[322118621,1712808644708,-500.0,0.00041095,21]
[322118622,1712808644717,-428.44114347,0.00041095,21]
[322118623,1712808644727,-500.0,0.00041095,21]
[322118624,1712808644736,-500.0,0.00041095,21]
[322118625,1712808644745,-500.0,0.00041095,21]
[322118626,1712808644756,-501.13245163,0.00041095,21]
[322118627,1712808644765,-500.0,0.00041095,21]
[322118628,1712808644775,-500.0,0.00041095,21]
[322118629,1712808644785,-391.66061878,0.00041095,21]
[322118630,1712808644795,-500.0,0.00041095,21]
[322118631,1712808644804,-151.0,0.00041095,2]
[322118632,1712808644817,-500.0,0.00041095,21]
[322118633,1712808644826,-151.0,0.00041095,2]
[322118634,1712808644835,-500.0,0.00041095,21]
[322118635,1712808644847,-500.0,0.00041095,21]
[322118636,1712808644857,-500.0,0.00041095,21]
[322118637,1712808644867,-503.6042638,0.00041095,21]
[322118638,1712808644878,-500.0,0.00041095,21]
[322118639,1712808644887,-500.0,0.00041095,21]
[322118640,1712808644897,-500.0,0.00041095,21]
[322118641,1712808644907,-636.08487522,0.00041095,21]
[322118642,1712808644916,-500.0,0.00041095,21]
[322118643,1712808644925,-507.19504777,0.00041095,21]
[322118644,1712808644935,-500.0,0.00041095,21]
[322118645,1712808644944,-500.0,0.00041095,21]
[322118646,1712808645028,-450.48948657,0.00041095,21]
[322118647,1712808645038,-503.94666909,0.00041095,21]
[322118648,1712808645047,-504.49331677,0.00041095,21]
[322118649,1712808645056,-500.0,0.00041095,21]
[322118650,1712808645065,-500.0,0.00041095,21]
[322118651,1712808645074,-506.41912868,0.00041095,21]
[322118652,1712808645083,-500.0,0.00041095,21]
[322118653,1712808645092,-509.25164329,0.00041095,21]
[322118654,1712808645102,-510.96346974,0.00041095,21]
[322118655,1712808645111,-500.0,0.00041095,21]
[322118656,1712808645121,-500.0,0.00041095,21]
[322118657,1712808645130,-581.38374573,0.00041095,21]
[322118658,1712808645140,-505.84251802,0.00041095,21]
[322118659,1712808645150,-500.0,0.00041095,21]
[322118660,1712808645160,-500.0,0.00041095,21]
[322118661,1712808645169,-503.52064868,0.00041095,21]
[322118662,1712808645179,-504.42885908,0.00041095,21]
[322118663,1712808645188,-508.35170473,0.00041095,21]
[322118664,1712808645200,-500.0,0.00041095,21]
[322118665,1712808645210,-500.0,0.00041095,21]
[322118666,1712808645219,-500.0,0.00041095,21]
[322118667,1712808645229,-500.0,0.00041095,21]
[322118668,1712808645238,-510.44738088,0.00041095,21]
[322118669,1712808645247,-437.83133147,0.00041095,21]
[322118670,1712808645257,-502.29009757,0.00041095,21]
[322118671,1712808645267,-506.73996722,0.00041095,21]
[322118672,1712808645276,-500.0,0.00041095,21]
[322118673,1712808645284,-500.0,0.00041095,21]
[322118674,1712808645294,-505.0,0.00041095,21]
[322118675,1712808645303,-506.0829126,0.00041095,21]
[322118676,1712808645314,-500.0,0.00041095,21]
[322118677,1712808645324,-507.38452379,0.00041095,21]
[322118678,1712808645334,-301.18602653,0.00041095,21]
[322118679,1712808645343,-500.0,0.00041095,21]
[322118680,1712808645353,-500.0,0.00041095,21]
[322118681,1712808645362,-343.17270435,0.00041095,21]
[322118682,1712808645371,-500.0,0.00041095,21]
[322118683,1712808645380,-311.77321341,0.00041095,21]
[322118684,1712808645389,-467.0087534,0.00041095,21]
[322118685,1712808645399,-500.0,0.00041095,21]
[322118686,1712808645410,-512.29226729,0.00041095,21]
[322118687,1712808645419,-500.0,0.00041095,21]
[322118688,1712808645428,-500.0,0.00041095,21]
[322118689,1712808645437,-500.0,0.00041095,21]
[322118690,1712808645446,-504.44726382,0.00041095,21]
[322118691,1712808645455,-1218.04,0.00041095,21]
[322118692,1712808645464,-500.0,0.00041095,21]
[322118693,1712808645474,-500.0,0.00041095,21]
[322118694,1712808645483,-505.14909184,0.00041095,21]
[322118695,1712808645492,-500.0,0.00041095,21]
[322118696,1712808645503,-500.0,0.00041095,21]
[322118697,1712808645513,-500.0,0.00041095,21]
[322118698,1712808645523,-500.0,0.00041095,21]
[322118699,1712808645532,-500.0,0.00041095,21]
[322118700,1712808645541,-500.0,0.00041095,21]
[322118701,1712808645550,-590.81037655,0.00041095,21]
[322118702,1712808645559,-405.940475,0.00041095,2]
[322118703,1712808645568,-500.0,0.00041095,21]
[322118704,1712808645577,-405.940475,0.00041095,2]
[322118705,1712808645586,-500.0,0.00041095,21]
[322118706,1712808645595,-505.04673356,0.00041095,21]
[322118707,1712808645604,-405.940475,0.00041095,2]
[322118708,1712808645613,-405.940479,0.00041095,2]
[322118709,1712808645621,-4979.49,0.00041095,21]
[322118710,1712808645631,-500.0,0.00041095,21]
[322118711,1712808645640,-500.0,0.00041095,21]
[322118712,1712808645649,-500.0,0.00041095,21]
[322118713,1712808645658,-501.72216263,0.00041095,21]
[322118714,1712808645667,-507.05941303,0.00041095,21]
[322118715,1712808645677,-724.67,0.00041095,21]
[322118716,1712808645686,-500.0,0.00041095,21]
[322118717,1712808645695,-379.42916452,0.00041095,21]
[322118718,1712808645705,-227.38933309,0.00041095,21]
[322118719,1712808645714,-625.60620476,0.00041095,21]
[322118720,1712808645723,-500.0,0.00041095,21]
[322118721,1712808645733,-500.0,0.00041095,21]
[322118722,1712808645742,-500.0,0.00041095,21]
[322118723,1712808645751,-500.0,0.00041095,21]
[322118725,1712808645761,-516.2384129,0.00041095,21]
[322118727,1712808645770,-500.0,0.00041095,21]
[322118728,1712808645779,-500.0,0.00041095,21]
[322118729,1712808645789,-500.0,0.00041095,21]
[322118730,1712808645798,-556.35122411,0.00041095,21]
[322118731,1712808645810,-500.0,0.00041095,21]
[322118732,1712808645819,-500.0,0.00041095,21]
[322118733,1712808645829,-500.0,0.00041095,21]
[322118734,1712808645838,-500.0,0.00041095,21]
[322118735,1712808645847,-500.0,0.00041095,21]
[322118736,1712808645856,-639.3,0.00041095,21]
[322118737,1712808645866,-500.0,0.00041095,21]
[322118738,1712808645875,-500.0,0.00041095,21]
[322118739,1712808645885,-500.0,0.00041095,21]
[322118740,1712808645894,-513.31933967,0.00041095,21]
[322118741,1712808645903,-500.0,0.00041095,21]
[322118742,1712808645913,-500.0,0.00041095,21]
[322118743,1712808645923,-500.0,0.00041095,21]
[322118744,1712808645932,-500.0,0.00041095,21]
[322118745,1712808645941,-500.0,0.00041095,21]
[322118746,1712808645950,-500.0,0.00041095,21]
[322118747,1712808645960,-500.0,0.00041095,21]
[322118748,1712808645969,-500.0,0.00041095,21]
[322118749,1712808645979,-500.0,0.00041095,21]
[322118750,1712808645988,-500.0,0.00041095,21]
[322118751,1712808645997,-500.0,0.00041095,21]
[322118752,1712808646006,-500.0,0.00041095,21]
[322118753,1712808646015,-500.0,0.00041095,21]
[322118754,1712808646023,-500.0,0.00041095,21]
[322118755,1712808646032,-500.0,0.00041095,21]
[322118757,1712808646042,-382.59400122,0.00041095,21]
[322118759,1712808646050,-500.0,0.00041095,21]
[322118760,1712808646060,-505.25227763,0.00041095,21]
[322118761,1712808646070,-286.378564,0.00041095,2]
[322118762,1712808646079,-500.0,0.00041095,21]
[322118763,1712808646088,-500.0,0.00041095,21]
[322118765,1712808646098,-505.17643698,0.00041095,21]
[322118766,1712808646108,-500.0,0.00041095,21]
[322118767,1712808646117,-500.0,0.00041095,21]
[322118768,1712808646128,-286.378557,0.00041095,2]
[322118769,1712808646137,-2351.25,0.00041095,21]
[322118770,1712808646147,-500.0,0.00041095,21]
[322118771,1712808646157,-500.0,0.00041095,21]
[322118772,1712808646167,-500.0,0.00041095,21]
[322118773,1712808646176,-500.0,0.00041095,21]
[322118774,1712808646185,-510.63107568,0.00041095,21]
[322118775,1712808646194,-2908.9,0.00041095,21]
[322118776,1712808646203,-500.0,0.00041095,21]
[322118777,1712808646213,-500.0,0.00041095,21]
[322118778,1712808646222,-500.0,0.00041095,21]
[322118779,1712808646231,-500.0,0.00041095,21]
[322118780,1712808646240,-500.0,0.00041095,21]
[322118781,1712808646249,-500.0,0.00041095,21]
[322118782,1712808646259,-500.0,0.00041095,21]
[322118783,1712808646268,-500.0,0.00041095,21]
[322118784,1712808646277,-155.6486904,0.00041095,21]
[322118785,1712808646286,-500.0,0.00041095,21]
[322118786,1712808646296,-500.0,0.00041095,21]
[322118787,1712808646305,-500.0,0.00041095,21]
[322118788,1712808646314,-500.0,0.00041095,21]
[322118789,1712808646323,-500.0,0.00041095,21]
[322118790,1712808646332,-500.0,0.00041095,21]
[322118791,1712808646341,-500.0,0.00041095,21]
[322118792,1712808646350,-513.38,0.00041095,21]
[322118793,1712808646360,-500.0,0.00041095,21]
[322118794,1712808646369,-500.0,0.00041095,21]
[322118795,1712808646378,-500.0,0.00041095,21]
[322118796,1712808646387,-500.0,0.00041095,21]
[322118797,1712808646396,-500.0,0.00041095,21]
[322118798,1712808646406,-500.0,0.00041095,21]
[322118799,1712808646415,-500.0,0.00041095,21]
[322118800,1712808646424,-500.0,0.00041095,21]
[322118801,1712808646433,-500.0,0.00041095,21]
[322118802,1712808646443,-500.0,0.00041095,21]
[322118803,1712808646452,-500.0,0.00041095,21]
[322118804,1712808646461,-500.0,0.00041095,21]
[322118805,1712808646470,-500.0,0.00041095,21]
[322118806,1712808646479,-500.0,0.00041095,21]
[322118807,1712808646488,-503.91617752,0.00041095,21]
[322118808,1712808646497,-500.0,0.00041095,21]
[322118809,1712808646506,-500.0,0.00041095,21]
[322118810,1712808646516,-500.0,0.00041095,21]
[322118811,1712808646525,-500.0,0.00041095,21]
[322118812,1712808646534,-500.0,0.00041095,21]
[322118813,1712808646543,-500.0,0.00041095,21]
[322118814,1712808646552,-500.44092489,0.00041095,21]
[322118815,1712808646561,-500.0,0.00041095,21]
[322118816,1712808646570,-500.0,0.00041095,21]
[322118817,1712808646579,-500.0,0.00041095,21]
[322118818,1712808646588,-503.88668452,0.00041095,21]
[322118819,1712808646597,-502.05175388,0.00041095,21]
[322118820,1712808646605,-500.0,0.00041095,21]
[322118821,1712808646614,-500.0,0.00041095,21]
[322118822,1712808646624,-500.0,0.00041095,21]
[322118823,1712808646633,-500.0,0.00041095,21]
[322118824,1712808646642,-500.0,0.00041095,21]
[322118825,1712808646651,-500.0,0.00041095,21]
[322118826,1712808646661,-554.81131479,0.00041095,21]
[322118828,1712808646670,-166.677522,0.00041095,2]
[322118829,1712808646679,-500.0,0.00041095,21]
[322118830,1712808646688,-166.677529,0.00041095,2]
[322118832,1712808646697,-500.0,0.00041095,21]
[322118833,1712808646706,-500.0,0.00041095,21]
[322118835,1712808646715,-500.0,0.00041095,21]
[322118836,1712808646724,-500.0,0.00041095,21]
[322118837,1712808646733,-500.0,0.00041095,21]
[322118838,1712808646742,-500.0,0.00041095,21]
[322118839,1712808646752,-501.52968456,0.00041095,21]
[322118840,1712808646761,-500.0,0.00041095,21]
[322118841,1712808646770,-500.0,0.00041095,21]
[322118842,1712808646779,-500.0,0.00041095,21]
[322118843,1712808646788,-509.31106479,0.00041095,7]
[322118844,1712808646797,-168.98305112,0.00041095,21]
[322118845,1712808646807,-500.0,0.00041095,21]
[322118846,1712808646817,-500.0,0.00041095,21]
[322118847,1712808646827,-503.00362862,0.00041095,21]
[322118848,1712808646836,-500.0,0.00041095,21]
[322118849,1712808646846,-500.0,0.00041095,21]
[322118850,1712808646855,-500.0,0.00041095,21]
[322118851,1712808646864,-500.0,0.00041095,21]
[322118852,1712808646873,-580.48,0.00041095,21]
[322118853,1712808646955,-494.29026478,0.00041095,21]
[322118854,1712808646964,-500.0,0.00041095,21]
[322118855,1712808646974,-500.0,0.00041095,21]
[322118856,1712808646983,-500.0,0.00041095,21]
[322118857,1712808646993,-500.0,0.00041095,21]
[322118858,1712808647002,-746.32,0.00041095,21]
[322118859,1712808647011,-500.0,0.00041095,21]
[322118860,1712808647020,-500.0,0.00041095,21]
[322118861,1712808647029,-325.87926,0.00041095,2]
[322118862,1712808647038,-325.87926,0.00041095,2]
[322118863,1712808647047,-500.58683515,0.00041095,21]
[322118864,1712808647056,-325.87926,0.00041095,2]
[322118865,1712808647066,-325.87925,0.00041095,2]
[322118866,1712808647075,-1105.3,0.00041095,21]
[322118867,1712808647085,-500.0,0.00041095,21]
[322118868,1712808647094,-500.62849757,0.00041095,21]
[322118869,1712808647103,-503.71989721,0.00041095,21]
[322118870,1712808647112,-500.0,0.00041095,21]
[322118871,1712808647121,-292.63875805,0.00041095,21]
[322118872,1712808647130,-500.0,0.00041095,21]
[322118873,1712808647139,-500.0,0.00041095,21]
[322118874,1712808647149,-500.0,0.00041095,21]
[322118875,1712808647158,-500.0,0.00041095,21]
[322118876,1712808647167,-507.24262939,0.00041095,21]
[322118877,1712808647178,-500.0,0.00041095,21]
[322118878,1712808647187,-500.0,0.00041095,21]
[322118879,1712808647197,-500.0,0.00041095,21]
[322118880,1712808647206,-500.30751499,0.00041095,21]
[322118881,1712808647215,-500.0,0.00041095,21]
[322118882,1712808647224,-504.09434844,0.00041095,21]
[322118883,1712808647233,-500.0,0.00041095,21]
[322118884,1712808647243,-500.0,0.00041095,21]
[322118885,1712808647253,-500.0,0.00041095,21]
[322118886,1712808647263,-690.75064635,0.00041168,4]
[322118887,1712808647272,-150.90945433,0.00041195,2]
[322118888,1712808647281,-500.0,0.00041368,21]
[322118889,1712808647290,-362.20750086,0.00041368,21]
[322118890,1712808647300,-500.0,0.00041369,21]
[322118891,1712808647308,-500.0,0.00041369,21]
[322118892,1712808647317,-504.71645888,0.00041369,21]
[322118893,1712808647326,-500.0,0.00041369,21]
[322118894,1712808647335,-501.91332949,0.00041369,21]
[322118895,1712808647345,-500.0,0.00041369,21]
[322118896,1712808647354,-506.03015356,0.00041369,21]
[322118897,1712808647364,-506.55923473,0.00041369,21]
[322118898,1712808647375,-528.84738455,0.00041369,21]
[322118899,1712808647385,-151.0,0.00041369,7]
[322118900,1712808647395,-517.49472297,0.00041369,21]
[322118901,1712808647405,-505.90336664,0.00041369,21]
[322118902,1712808647415,-500.0,0.00041369,21]
[322118903,1712808647424,-500.0,0.00041369,21]
[322118904,1712808647434,-500.0,0.00041369,21]
[322118905,1712808647443,-500.0,0.00041369,21]
[322118906,1712808647452,-630.68281428,0.00041369,21]
[322118907,1712808647461,-505.15384596,0.00041369,21]
[322118908,1712808647470,-503.82162687,0.00041369,21]
[322118909,1712808647480,-506.20772257,0.00041369,21]
[322118910,1712808647489,-500.0,0.00041369,21]
[322118911,1712808647498,-500.0,0.00041369,21]
[322118912,1712808647507,-510.69431862,0.00041369,21]
[322118913,1712808647516,-500.0,0.00041369,21]
[322118914,1712808647526,-566.75851645,0.00041369,21]
[322118915,1712808647535,-506.36065677,0.00041369,21]
[322118916,1712808647544,-168.18785997,0.00041369,21]
[322118917,1712808647553,-509.72973434,0.00041369,21]
[322118918,1712808647563,-500.0,0.00041369,21]
[322118919,1712808647572,-500.0,0.00041369,21]
[322118920,1712808647581,-500.0,0.00041369,21]
[322118921,1712808647590,-500.0,0.00041369,21]
[322118922,1712808647600,-504.5915411,0.00041369,21]
[322118923,1712808647609,-504.37624287,0.00041369,21]
[322118924,1712808647618,-500.0,0.00041369,21]
[322118925,1712808647627,-503.21998664,0.00041369,21]
[322118926,1712808647637,-502.69986592,0.00041369,21]
[322118927,1712808647647,-520.32446704,0.00041369,21]
[322118928,1712808647656,-500.0,0.00041369,21]
[322118929,1712808647666,-502.57783947,0.00041369,21]
[322118930,1712808647675,-1218.04,0.00041369,21]
[322118931,1712808647684,-500.0,0.00041369,21]
[322118932,1712808647693,-500.0,0.00041369,21]
[322118933,1712808647702,-500.0,0.00041369,21]
[322118934,1712808647712,-503.34229211,0.00041369,21]
[322118935,1712808647721,-419.97749823,0.00041369,21]
[322118936,1712808647731,-508.52960176,0.00041369,21]
[322118937,1712808647740,-500.0,0.00041369,21]
[322118938,1712808647749,-500.0,0.00041369,21]
[322118939,1712808647758,-503.97973998,0.00041369,21]
[322118940,1712808647767,-500.0,0.00041369,21]
[322118941,1712808647776,-4979.49,0.00041369,21]
[322118942,1712808647785,-500.0,0.00041369,21]
[322118943,1712808647794,-500.0,0.00041369,21]
[322118944,1712808647805,-500.0,0.00041369,21]
[322118945,1712808647816,-724.67,0.00041369,21]
[322118946,1712808647825,-500.0,0.00041369,21]
[322118947,1712808647834,-500.0,0.00041369,21]
[322118948,1712808647844,-513.70287752,0.00041369,21]
[322118949,1712808647854,-500.0,0.00041369,21]
[322118950,1712808647863,-500.0,0.00041369,21]
[322118951,1712808647872,-500.0,0.00041369,21]
[322118952,1712808647883,-500.0,0.00041369,21]
[322118953,1712808647892,-500.0,0.00041369,21]
[322118954,1712808647901,-500.0,0.00041369,21]
[322118955,1712808647911,-500.0,0.00041369,21]
[322118956,1712808647920,-500.0,0.00041369,21]
[322118957,1712808647929,-500.0,0.00041369,21]
[322118958,1712808647939,-501.47206901,0.00041369,21]
[322118959,1712808647948,-639.3,0.00041369,21]
[322118960,1712808647957,-500.0,0.00041369,21]
[322118961,1712808647966,-500.0,0.00041369,21]
[322118962,1712808647975,-500.0,0.00041369,21]
[322118963,1712808647984,-500.0,0.00041369,21]
[322118964,1712808647993,-500.0,0.00041369,21]
[322118965,1712808648003,-371.22876371,0.00041369,21]
[322118966,1712808648012,-500.0,0.00041369,21]
[322118967,1712808648022,-500.0,0.00041369,21]
[322118968,1712808648031,-500.0,0.00041369,21]
[322118969,1712808648039,-500.0,0.00041369,21]
[322118970,1712808648049,-500.0,0.00041369,21]
[322118971,1712808648058,-500.0,0.00041369,21]
[322118972,1712808648067,-501.91325314,0.00041369,21]
[322118973,1712808648076,-2351.25,0.00041369,21]
[322118974,1712808648085,-500.0,0.00041369,21]
[322118975,1712808648094,-500.0,0.00041369,21]
[322118976,1712808648103,-2908.9,0.00041369,21]
[322118977,1712808648112,-500.0,0.00041369,21]
[322118978,1712808648121,-502.37461869,0.00041369,21]
[322118979,1712808648130,-500.0,0.00041369,21]
[322118980,1712808648139,-500.0,0.00041369,21]
[322118981,1712808648148,-500.0,0.00041369,21]
[322118982,1712808648157,-503.55679818,0.00041369,21]
[322118983,1712808648167,-500.0,0.00041369,21]
[322118984,1712808648176,-500.0,0.00041369,21]
[322118985,1712808648186,-501.88845387,0.00041369,21]
[322118986,1712808648195,-500.0,0.00041369,21]
[322118987,1712808648204,-500.0,0.00041369,21]
[322118988,1712808648213,-500.0,0.00041369,21]
[322118989,1712808648223,-500.0,0.00041369,21]
[322118990,1712808648232,-500.0,0.00041369,21]
[322118991,1712808648241,-513.38,0.00041369,21]
[322118992,1712808648251,-500.0,0.00041369,21]
[322118993,1712808648260,-500.0,0.00041369,21]
[322118994,1712808648270,-500.0,0.00041369,21]
[322118995,1712808648280,-500.0,0.00041369,21]
[322118996,1712808648290,-500.0,0.00041369,21]
[322118997,1712808648299,-500.0,0.00041369,21]
[322118998,1712808648308,-500.0,0.00041369,21]
[322118999,1712808648318,-501.25580502,0.00041369,21]
[322119000,1712808648328,-579.46304835,0.00041369,21]
[322119001,1712808648337,-565.65845339,0.00041369,21]
[322119002,1712808648346,-500.0,0.00041369,21]
[322119003,1712808648355,-500.0,0.00041369,21]
[322119004,1712808648364,-500.0,0.00041369,21]
[322119005,1712808648374,-500.0,0.00041369,21]
[322119006,1712808648383,-500.0,0.00041369,21]
[322119007,1712808648392,-503.41125147,0.00041369,21]
[322119008,1712808648402,-500.0,0.00041369,21]
[322119009,1712808648411,-500.0,0.00041369,21]
[322119010,1712808648420,-227.52141825,0.00041369,21]
[322119011,1712808648429,-502.40497176,0.00041369,21]
[322119012,1712808648438,-500.0,0.00041369,21]
[322119013,1712808648448,-500.0,0.00041369,21]
[322119014,1712808648458,-478.89071637,0.00041369,21]
[322119015,1712808648467,-500.0,0.00041369,21]
[322119016,1712808648476,-500.0,0.00041369,21]
[322119017,1712808648486,-500.0,0.00041369,21]
[322119018,1712808648496,-500.30321452,0.00041369,21]
[322119019,1712808648506,-500.0,0.00041369,21]
[322119020,1712808648515,-500.64519832,0.00041369,21]
[322119021,1712808648525,-504.56730367,0.00041369,21]
[322119022,1712808648535,-573.89650599,0.00041369,21]
[322119023,1712808648544,-500.0,0.00041369,21]
[322119024,1712808648554,-501.35682496,0.00041369,21]
[322119025,1712808648565,-580.48,0.00041369,21]
[322119026,1712808648576,-500.0,0.00041369,21]
[322119027,1712808648586,-500.0,0.00041369,21]
[322119028,1712808648598,-500.0,0.00041369,21]
[322119029,1712808648608,-500.0,0.00041369,21]
[322119030,1712808648618,-746.32,0.00041369,21]
[322119031,1712808648628,-500.0,0.00041369,21]
[322119032,1712808648638,-502.74638052,0.00041369,21]
[322119033,1712808648649,-1105.3,0.00041369,21]
[322119034,1712808648659,-503.02734335,0.00041369,21]
[322119035,1712808648669,-503.94796914,0.00041369,21]
[322119036,1712808648747,-502.84228291,0.00041369,21]
[322119037,1712808648756,-500.0,0.00041369,21]
[322119038,1712808648767,-185.84393006,0.00041369,21]
[322119039,1712808648776,-500.0,0.00041369,21]
[322119040,1712808648786,-503.70063523,0.00041369,21]
[322119041,1712808648797,-502.0864939,0.00041369,21]
[322119042,1712808648809,-500.0,0.00041369,21]
[322119043,1712808648819,-500.82561834,0.00041369,21]
[322119044,1712808648830,-500.0,0.00041369,21]
[322119045,1712808648840,-500.0,0.00041369,21]
[322119046,1712808648850,-502.48943605,0.00041369,21]
[322119047,1712808648860,-895.068353,0.00041553,120]
[322119048,1712808648869,-500.0,0.00041643,21]
[322119049,1712808648879,-500.0,0.00041643,21]
[322119050,1712808648889,-503.91917995,0.00041643,21]
[322119051,1712808648898,-151.0,0.00041643,7]
[322119052,1712808648908,-500.0,0.00041643,21]
[322119053,1712808648918,-369.2753383,0.00041643,21]
[322119054,1712808648929,-500.0,0.00041643,21]
[322119055,1712808648939,-504.6097672,0.00041643,21]
[322119056,1712808648949,-501.6139725,0.00041643,21]
[322119057,1712808648959,-507.97307625,0.00041643,21]
[322119058,1712808648968,-521.05647739,0.00041643,21]